fUST/lending_fUST_20240821
["ID","MTS","AMOUNT","RATE_DAILY","PERIOD"]
[335469773,1724248241812,-408.9517048,0.00032263,2]
[335469775,1724248241826,-180.064657,0.00032265,2]
[335469777,1724248241836,-181.048876,0.00032265,2]
[335469780,1724248241847,-180.064656,0.00032265,2]
[335469782,1724248241858,-181.048875,0.00032265,2]
[335469784,1724248241867,-168.423271,0.00032265,2]
[335469786,1724248241878,-180.049572,0.00032265,2]
[335469788,1724248241887,-181.901599,0.00032265,2]
[335469790,1724248241897,-180.057116,0.00032265,2]
[335469792,1724248241906,-181.901599,0.00032265,2]
[335469794,1724248241916,-168.423271,0.00032265,2]
[335469796,1724248241927,-600.0,0.00032316,14]
[335469799,1724248241939,-415.2483466,0.00032364,2]
[335469801,1724248241949,-409.0504316,0.00032364,2]
[335469803,1724248241959,-818.1008632,0.00032364,2]
[335469805,1724248241969,-409.0504316,0.00032364,2]
[335469807,1724248241978,-409.0504316,0.00032364,2]
[335469809,1724248241989,-409.0504316,0.00032364,2]
[335469811,1724248241999,-409.0504316,0.00032364,2]
[335469813,1724248242009,-409.0504316,0.00032364,2]
[335469815,1724248242019,-409.0504316,0.00032364,2]
[335469817,1724248242029,-409.0504316,0.00032364,2]
[335469819,1724248242039,-646.826452,0.00032364,2]
[335469822,1724248242051,-409.0504316,0.00032364,2]
[335469824,1724248242062,-409.0504316,0.00032364,2]
[335469826,1724248242075,-220.9209177,0.00032364,2]
[335469828,1724248242091,-150.112233,0.000324,8]
[335469830,1724248242102,-505.15008471,0.000324,2]
[335469832,1724248242112,-150.112233,0.000325,9]
[335469834,1724248242122,-700.0,0.00032544,7]
[335469836,1724248242131,-150.112233,0.000326,6]
[335469838,1724248242140,-151.0,0.00032666,7]
[335469840,1724248242149,-1204.01786991,0.00032668,2]
[335469842,1724248242158,-383.43,0.000327,14]
[335469844,1724248242167,-271.27,0.000327,31]
[335469846,1724248242177,-271.27,0.000327,31]
[335469848,1724248242187,-271.27,0.000327,31]
[335469850,1724248242196,-271.27,0.000327,31]
[335469852,1724248242206,-271.27,0.000327,31]
[335469854,1724248242215,-271.27,0.000327,31]
[335469856,1724248242225,-271.27,0.000327,31]
[335469858,1724248242234,-271.27,0.000327,31]
[335469861,1724248242243,-271.27,0.000327,31]
[335469863,1724248242252,-271.27,0.000327,31]
[335469866,1724248242261,-271.27,0.000327,31]
[335469869,1724248242271,-271.27,0.000327,31]
[335469871,1724248242281,-271.27,0.000327,31]
[335469873,1724248242290,-271.27,0.000327,31]
[335469875,1724248242299,-271.27,0.000327,31]
[335469877,1724248242308,-271.27,0.000327,31]
[335469880,1724248242325,-271.27,0.000327,31]
[335469882,1724248242334,-271.27,0.000327,31]
[335469883,1724248242343,-271.27,0.000327,31]
[335469885,1724248242352,-271.27,0.000327,31]
[335469887,1724248242361,-271.27,0.000327,31]
[335469890,1724248242371,-271.27,0.000327,31]
[335469892,1724248242381,-271.27,0.000327,31]
[335469894,1724248242391,-271.27,0.000327,31]
[335469896,1724248242400,-5387.93,0.000327,14]
[335469898,1724248242412,-500.0,0.00032766,7]
[335469900,1724248242422,-150.112233,0.000328,9]
[335469902,1724248242432,-150.112233,0.000328,10]
[335469904,1724248242441,-700.0,0.00032808,7]
[335469906,1724248242450,-383.3,0.00032863,4]
[335469908,1724248242459,-151.0,0.00032863,4]
[335469910,1724248242469,-1000.0,0.00032876,2]
[335469912,1724248242478,-196.245603,0.00032876,7]
[335469914,1724248242487,-196.245603,0.00032876,7]
[335469916,1724248242497,-183.601852,0.00032876,7]
[335469918,1724248242506,-183.601852,0.00032876,7]
[335469920,1724248242516,-7046.36,0.00032876,21]
[335469922,1724248242525,-151.0,0.00032898,7]
[335469924,1724248242535,-151.0,0.00032898,7]
[335469926,1724248242547,-151.0,0.00032931,7]
[335469928,1724248242557,-899.95,0.00032931,7]
[335469930,1724248242566,-899.95,0.00032931,7]
[335469932,1724248242577,-7046.36,0.00032931,21]
[335469933,1724248242588,-151.0,0.00032945,7]
[335469934,1724248242599,-154.058903,0.00032945,7]
[335469935,1724248242610,-6617.71510224,0.00032967,60]
[335469937,1724248242619,-285.3614456,0.00032976,3]
[335469939,1724248242628,-7046.36,0.00032986,21]
[335469941,1724248242637,-200.1,0.00032999,2]
[335469943,1724248242647,-200.1,0.00032999,2]
[335469944,1724248242658,-200.1,0.00032999,2]
[335469945,1724248242667,-200.1,0.00032999,2]
[335469946,1724248242677,-200.1,0.00032999,2]
[335469947,1724248242687,-200.1,0.00032999,2]
[335469948,1724248242697,-200.1,0.00032999,2]
[335469951,1724248242707,-200.1,0.00032999,2]
[335469954,1724248242717,-200.1,0.00032999,2]
[335469957,1724248242726,-200.1,0.00032999,2]
[335469960,1724248242736,-151.0,0.00032999,7]
[335469962,1724248242745,-151.0,0.00032999,7]
[335469964,1724248242754,-10000.0,0.00033,27]
[335469965,1724248242765,-10000.0,0.00033,23]
[335469966,1724248242776,-300.0,0.00033,7]
[335469967,1724248242785,-238.73,0.00033,120]
[335469968,1724248242795,-1000.0,0.00033,10]
[335469969,1724248242805,-1000.0,0.00033,33]
[335469971,1724248242815,-151.0,0.00033,7]
[335469973,1724248242826,-151.0,0.00033,7]
[335469975,1724248242836,-300.0,0.00033,21]
[335469977,1724248242846,-151.0,0.00033,7]
[335469979,1724248242855,-151.0,0.00033,7]
[335469981,1724248242865,-151.0,0.00033,7]
[335469983,1724248242875,-458.495144,0.00033,21]
[335469985,1724248242884,-271.66030088,0.00033,2]
[335469987,1724248242893,-7046.36,0.00033041,21]
[335469989,1724248242902,-7046.36,0.00033095,21]
[335469991,1724248242912,-513.03,0.000331,30]
[335469993,1724248242921,-7046.36,0.0003315,21]
[335469995,1724248242930,-151.0,0.00033186,7]
[335469997,1724248242940,-3000.0,0.00033188,4]
[335469999,1724248242949,-150.112233,0.000332,7]
[335470001,1724248242959,-150.112233,0.000332,6]
[335470003,1724248242968,-7046.36,0.00033205,21]
[335470005,1724248242978,-155.82579699,0.0003325,3]
[335470007,1724248242988,-151.0,0.0003326,7]
[335470009,1724248242997,-7046.36,0.0003326,21]
[335470011,1724248243006,-7046.36,0.00033315,21]
[335470013,1724248243017,-1204.01786991,0.00033362,2]
[335470016,1724248243028,-7046.36,0.00033369,21]
[335470018,1724248243037,-600.0,0.00033392,7]
[335470020,1724248243048,-1000.0,0.00033424,2]
[335470022,1724248243057,-7046.36,0.00033424,21]
[335470024,1724248243068,-151.0,0.00033479,7]
[335470026,1724248243079,-151.0,0.00033479,7]
[335470028,1724248243090,-7046.36,0.00033479,21]
[335470030,1724248243099,-700.0,0.00033496,7]
[335470032,1724248243109,-196.245603,0.00033534,7]
[335470034,1724248243118,-196.245603,0.00033534,7]
[335470036,1724248243128,-183.601852,0.00033534,7]
[335470039,1724248243139,-183.601852,0.00033534,7]
[335470041,1724248243149,-7046.36,0.00033534,21]
[335470043,1724248243159,-600.0,0.00033538,7]
[335470045,1724248243169,-151.0,0.00033541,7]
[335470047,1724248243180,-1899.6996307,0.00033541,2]
[335470049,1724248243189,-700.0,0.00033543,7]
[335470051,1724248243199,-7046.36,0.00033589,21]
[335470052,1724248243210,-600.0,0.00033599,2]
[335470054,1724248243221,-150.112233,0.000336,9]
[335470056,1724248243231,-150.112233,0.000336,10]
[335470058,1724248243242,-262.790682,0.00033626,2]
[335470059,1724248243253,-33264.43619876,0.00033641,2]
[335470061,1724248243267,-1731.19781452,0.00033641,2]
[335470067,1724248243366,-255.53,0.0002864,3]
[335470068,1724248243381,-17900.884958,0.0002864,3]
[335470180,1724248246466,-309.67712516,0.0002864,3]
[335470193,1724249073532,150.0,0.0002031,120]
[335470198,1724249307436,1386.67466508,0.00013971,2]
[335470199,1724249317671,150.0,0.0002031,120]
[335470252,1724249431976,-223.37208,0.00014247,2]
[335470254,1724249431987,-700.0,0.00019274,2]
[335470256,1724249431997,-700.0,0.00019484,2]
[335470258,1724249432006,-700.0,0.0001997,2]
[335470259,1724249432017,-500.0,0.00020007,2]
[335470261,1724249432026,-500.0,0.00020186,2]
[335470263,1724249432036,-2846.02536,0.00020209,2]
[335470264,1724249432046,-262.06561387,0.000203,2]
[335470265,1724249432056,-20785.80535544,0.000203,2]
[335470287,1724249438061,-9013.35795856,0.000203,2]
[335470289,1724249438071,-196.84193323,0.00020309,2]
[335470291,1724249438086,-126513.3262371,0.0002031,2]
[335470293,1724249438096,-287.17173053,0.0002031,2]
[335470295,1724249438107,-10513.28749774,0.0002031,2]
[335470297,1724249438117,-226.13158555,0.0002031,2]
[335470299,1724249438126,-1260.81854444,0.0002031,2]
[335470301,1724249438136,-700.0,0.00020521,2]
[335470303,1724249438147,-700.0,0.00020561,2]
[335470305,1724249438157,-223.37208,0.00020707,2]
[335470307,1724249438167,-29799.163314,0.0002099,3]
[335470309,1724249438177,-5000.0,0.00021,2]
[335470311,1724249438187,-600.0,0.0002101,2]
[335470313,1724249438196,-700.0,0.00021139,2]
[335470315,1724249438207,-700.0,0.00021272,2]
[335470317,1724249438216,-700.0,0.00021337,2]
[335470319,1724249438226,-600.0,0.00021634,2]
[335470321,1724249438236,-700.0,0.00022061,2]
[335470323,1724249438246,-700.0,0.00022206,2]
[335470325,1724249438255,-2846.02535997,0.00022308,2]
[335470327,1724249438266,-700.0,0.00022427,2]
[335470330,1724249438276,-600.0,0.0002335,2]
[335470332,1724249438286,-220.4,0.00023561,2]
[335470334,1724249438295,-500.0,0.00023585,2]
[335470336,1724249438306,-170.626095,0.00023992,2]
[335470338,1724249438315,-277.68803325,0.00024283,2]
[335470340,1724249438326,-882.99597685,0.00024299,2]
[335470342,1724249438335,-2846.02535997,0.00024406,2]
[335470344,1724249438345,-166.78984,0.00024492,2]
[335470346,1724249438355,-600.0,0.00024515,2]
[335470348,1724249438364,-220.4,0.00024595,2]
[335470350,1724249438375,-435.0,0.00024613,2]
[335470352,1724249438385,-309.14971473,0.00024613,2]
[335470354,1724249438395,-198.74200664,0.00024618,2]
[335470356,1724249438405,-953.53947811,0.00024618,2]
[335470358,1724249438414,-166.78984,0.0002462,2]
[335470360,1724249438423,-3153.32502539,0.00024647,2]
[335470362,1724249438433,-4998.24465256,0.00024647,2]
[335470364,1724249438443,-631.83554832,0.00024658,2]
[335470366,1724249438452,-600.0,0.00024745,2]
[335470368,1724249438462,-166.78984,0.00024748,2]
[335470370,1724249438473,-700.0,0.0002479,2]
[335470372,1724249438482,-600.0,0.00024826,2]
[335470374,1724249438491,-166.78984,0.00024875,2]
[335470376,1724249438502,-700.0,0.00024922,2]
[335470378,1724249438512,-700.0,0.00024946,2]
[335470380,1724249438521,-499.3,0.00024986,2]
[335470382,1724249438532,-191.34123187,0.00025,2]
[335470384,1724249438542,-308.47910106,0.00025,2]
[335470386,1724249438551,-369.96805713,0.00025,30]
[335470388,1724249438561,-154.76012181,0.00025,2]
[335470390,1724249438571,-154.80649189,0.00025,2]
[335470392,1724249438581,-199.0,0.00025,2]
[335470394,1724249438590,-166.78984,0.00025003,2]
[335470396,1724249438600,-166.78984,0.0002513,2]
[335470398,1724249438610,-600.0,0.00025188,2]
[335470400,1724249438620,-166.78984,0.00025258,2]
[335470402,1724249438629,-166.78984,0.00025386,2]
[335470404,1724249438639,-600.0,0.00025484,2]
[335470406,1724249438649,-166.78984,0.00025513,2]
[335470408,1724249438658,-220.4,0.00025629,2]
[335470409,1724249438668,-166.78984,0.00025641,2]
[335470410,1724249438678,-166.78984,0.00025768,2]
[335470411,1724249438687,-500.0,0.00025789,2]
[335470412,1724249438698,-500.0,0.00025811,2]
[335470413,1724249438707,-500.0,0.00025997,2]
[335470414,1724249438716,-5000.0,0.00026,2]
[335470415,1724249438725,-175.41560035,0.00026357,2]
[335470416,1724249438735,-500.0,0.00026357,2]
[335470417,1724249438744,-332.81488562,0.00026357,2]
[335470418,1724249438753,-515.99639363,0.00026357,2]
[335470419,1724249438762,-500.0,0.00026357,2]
[335470420,1724249438772,-500.0,0.00026357,2]
[335470421,1724249438781,-500.0,0.00026357,2]
[335470422,1724249438790,-500.0,0.00026357,2]
[335470423,1724249438800,-500.0,0.00026357,2]
[335470425,1724249438810,-500.0,0.00026357,2]
[335470427,1724249438824,-600.0,0.00026358,2]
[335470429,1724249438834,-700.0,0.00026415,2]
[335470431,1724249438843,-2846.02535997,0.00026505,2]
[335470433,1724249438853,-152.41,0.000266,31]
[335470435,1724249438865,-152.41,0.000266,31]
[335470437,1724249438875,-152.41,0.000266,31]
[335470439,1724249438885,-152.41,0.000266,31]
[335470441,1724249438895,-152.41,0.000266,31]
[335470443,1724249438905,-152.41,0.000266,31]
[335470445,1724249438914,-152.41,0.000266,31]
[335470447,1724249438924,-152.41,0.000266,31]
[335470449,1724249438933,-152.41,0.000266,31]
[335470451,1724249438943,-152.41,0.000266,31]
[335470453,1724249438953,-152.41,0.000266,31]
[335470455,1724249438962,-152.41,0.000266,31]
[335470457,1724249438972,-220.4,0.00026662,2]
[335470458,1724249438981,-700.0,0.00026674,2]
[335470460,1724249438991,-495.0,0.00027,2]
[335470461,1724249439000,-223.37208,0.00027167,2]
[335470462,1724249439010,-207.87011392,0.00027397,2]
[335470463,1724249439021,-933.95747527,0.00027397,2]
[335470464,1724249439031,-700.0,0.00027415,2]
[335470465,1724249439042,-600.0,0.0002746,2]
[335470466,1724249439060,-600.0,0.00027527,2]
[335470467,1724249439070,-495.0,0.00027671,2]
[335470468,1724249439079,-220.4,0.00027696,2]
[335470469,1724249439088,-700.0,0.00027698,2]
[335470470,1724249439102,-700.0,0.0002777,2]
[335470471,1724249439111,-500.0,0.00027875,4]
[335470472,1724249439121,-504.54855206,0.00027875,5]
[335470473,1724249439130,-201.28991957,0.00027875,5]
[335470474,1724249439140,-401.02347447,0.00027875,2]
[335470475,1724249439149,-500.0,0.00027875,5]
[335470476,1724249439159,-1480.28757557,0.00027945,120]
[335470477,1724249439170,-600.0,0.00027961,2]
[335470478,1724249439180,-700.0,0.00027974,2]
[335470479,1724249439190,-369.21673832,0.00028,30]
[335470480,1724249439200,-600.0,0.00028203,2]
[335470481,1724249439210,-600.0,0.00028264,2]
[335470482,1724249439220,-1000.0,0.00028423,4]
[335470483,1724249439229,-661.32016401,0.00028423,5]
[335470484,1724249439239,-313.6271849,0.00028493,2]
[335470485,1724249439249,-688.29452569,0.00028493,2]
[335470486,1724249439258,-2039.18533841,0.0002854,2]
[335470487,1724249439268,-29799.163314,0.0002859,3]
[335470488,1724249439278,-152.41,0.000286,31]
[335470489,1724249439287,-152.41,0.000286,31]
[335470490,1724249439296,-152.41,0.000286,31]
[335470491,1724249439306,-152.41,0.000286,31]
[335470492,1724249439315,-152.41,0.000286,31]
[335470493,1724249439325,-152.41,0.000286,31]
[335470494,1724249439334,-152.41,0.000286,31]
[335470495,1724249439344,-152.41,0.000286,31]
[335470496,1724249439354,-152.41,0.000286,31]
[335470497,1724249439363,-152.41,0.000286,31]
[335470498,1724249439373,-152.41,0.000286,31]
[335470499,1724249439383,-152.41,0.000286,31]
[335470500,1724249439392,-152.41,0.000286,31]
[335470501,1724249439402,-152.41,0.000286,31]
[335470502,1724249439412,-152.41,0.000286,31]
[335470503,1724249439421,-152.41,0.000286,31]
[335470504,1724249439431,-152.41,0.000286,31]
[335470505,1724249439440,-152.41,0.000286,31]
[335470506,1724249439450,-152.41,0.000286,31]
[335470508,1724249439460,-152.41,0.000286,31]
[335470509,1724249439470,-152.41,0.000286,31]
[335470510,1724249439480,-152.41,0.000286,31]
[335470512,1724249439490,-152.41,0.000286,31]
[335470513,1724249439500,-152.41,0.000286,31]
[335470514,1724249439510,-2846.02535997,0.00028604,2]
[335470515,1724249439519,-500.0,0.00028673,5]
[335470516,1724249439530,-220.4,0.00028729,2]
[335470517,1724249439539,-700.0,0.00028734,2]
[335470518,1724249439550,-495.0,0.00028767,2]
[335470519,1724249439559,-1000.0,0.00029221,5]
[335470520,1724249439569,-1500.0,0.00029321,4]
[335470521,1724249439579,-700.0,0.00029425,2]
[335470522,1724249439589,-600.0,0.00029517,2]
[335470524,1724249439599,-500.0,0.00029689,2]
[335470526,1724249439608,-220.4,0.00029763,2]
[335470527,1724249439618,-150.112233,0.000298,9]
[335470528,1724249439627,-2039.18533839,0.00029938,2]
[335470529,1724249439636,-10000.0,0.0003,21]
[335470530,1724249439646,-178.72751622,0.0003,5]
[335470531,1724249439656,-500.0,0.0003004,7]
[335470532,1724249439665,-500.0,0.00030106,7]
[335470533,1724249439675,-496.0,0.00030205,2]
[335470534,1724249439685,-700.0,0.00030292,7]
[335470535,1724249439695,-501.99527765,0.00030376,7]
[335470536,1724249439704,-700.0,0.00030393,7]
[335470537,1724249439714,-500.0,0.00030423,7]
[335470538,1724249439724,-2000.0,0.00030426,4]
[335470539,1724249439734,-152.41,0.000307,31]
[335470540,1724249439744,-152.41,0.000307,31]
[335470541,1724249439755,-152.41,0.000307,31]
[335470542,1724249439765,-152.41,0.000307,31]
[335470543,1724249439775,-152.41,0.000307,31]
[335470544,1724249439785,-152.41,0.000307,31]
[335470545,1724249439795,-152.41,0.000307,31]
[335470546,1724249439804,-152.41,0.000307,31]
[335470547,1724249439814,-152.41,0.000307,31]
[335470548,1724249439823,-152.41,0.000307,31]
[335470549,1724249439837,-152.41,0.000307,31]
[335470551,1724249439848,-152.41,0.000307,31]
[335470552,1724249439858,-152.41,0.000307,31]
[335470553,1724249439869,-152.41,0.000307,31]
[335470554,1724249439880,-152.41,0.000307,31]
[335470555,1724249439891,-152.41,0.000307,31]
[335470556,1724249439902,-152.41,0.000307,31]
[335470557,1724249439914,-152.41,0.000307,31]
[335470558,1724249439926,-152.41,0.000307,31]
[335470559,1724249439936,-152.41,0.000307,31]
[335470560,1724249439947,-152.41,0.000307,31]
[335470561,1724249439957,-152.41,0.000307,31]
[335470562,1724249439966,-152.41,0.000307,31]
[335470563,1724249439976,-152.41,0.000307,31]
[335470564,1724249439985,-2846.02535997,0.00030703,2]
[335470565,1724249439994,-700.0,0.00030793,7]
[335470566,1724249440004,-220.4,0.00030797,3]
[335470567,1724249440014,-600.0,0.00030994,7]
[335470568,1724249440025,-10000.0,0.00031,22]
[335470569,1724249440035,-151.0,0.00031,7]
[335470570,1724249440045,-311.0,0.00031,14]
[335470571,1724249440055,-151.0,0.00031,7]
[335470572,1724249440065,-151.0,0.00031,7]
[335470573,1724249440074,-172.222689,0.00031,7]
[335470574,1724249440083,-5000.0,0.00031,2]
[335470576,1724249440093,-239.615,0.00031022,2]
[335470577,1724249440102,-150.0,0.00031022,2]
[335470579,1724249440111,-700.0,0.00031062,7]
[335470581,1724249440121,-500.0,0.00031087,7]
[335470582,1724249440132,-500.0,0.00031132,7]
[335470583,1724249440144,-600.0,0.00031144,7]
[335470584,1724249440154,-150.112233,0.000312,5]
[335470585,1724249440165,-2039.18533839,0.00031336,2]
[335470587,1724249440175,-29799.163314,0.00031386,4]
[335470589,1724249440185,-150.0,0.00031396,2]
[335470590,1724249440194,-150.0,0.00031396,2]
[335470591,1724249440204,-521.0,0.00031396,2]
[335470592,1724249440214,-1415.0,0.00031424,2]
[335470593,1724249440224,-500.0,0.00031463,7]
[335470594,1724249440233,-5041.43498642,0.00031519,2]
[335470595,1724249440243,-600.0,0.00031625,7]
[335470596,1724249440254,-2500.0,0.00031691,4]
[335470597,1724249440264,-600.0,0.00031708,7]
[335470598,1724249440274,-5816.03890693,0.00031726,4]
[335470599,1724249440289,-23983.12440707,0.00031726,4]
[335470600,1724249440299,-153.0,0.00031748,2]
[335470601,1724249440308,-153.0,0.00031748,2]
[335470602,1724249440318,-153.0,0.00031748,2]
[335470603,1724249440327,-153.0,0.00031748,2]
[335470604,1724249440337,-153.0,0.00031748,2]
[335470606,1724249440346,-220.4,0.0003183,3]
[335470607,1724249440356,-151.0,0.0003183,3]
[335470608,1724249440365,-600.0,0.00031897,7]
[335470609,1724249440375,-600.0,0.00031964,7]
[335470610,1724249440384,-29799.163314,0.0003199,4]
[335470611,1724249440394,-10000.0,0.00032,24]
[335470612,1724249440403,-5041.43498642,0.00032052,2]
[335470613,1724249440412,-5041.43498642,0.0003208,2]
[335470614,1724249440422,-495.0,0.00032219,2]
[335470615,1724249440432,-722.41072198,0.00032321,2]
[335470616,1724249440442,-151.0,0.00032421,7]
[335470617,1724249440452,-150.112233,0.000325,9]
[335470618,1724249440461,-5041.43498642,0.00032503,2]
[335470619,1724249440471,-600.0,0.00032524,7]
[335470620,1724249440480,-150.112233,0.000326,6]
[335470621,1724249440489,-311.0,0.000327,14]
[335470622,1724249440499,-152.41,0.000327,31]
[335470623,1724249440509,-152.41,0.000327,31]
[335470624,1724249440518,-152.41,0.000327,31]
[335470625,1724249440528,-152.41,0.000327,31]
[335470626,1724249440537,-152.41,0.000327,31]
[335470627,1724249440548,-152.41,0.000327,31]
[335470628,1724249440557,-152.41,0.000327,31]
[335470629,1724249440566,-152.41,0.000327,31]
[335470630,1724249440576,-152.41,0.000327,31]
[335470631,1724249440586,-152.41,0.000327,31]
[335470632,1724249440596,-152.41,0.000327,31]
[335470633,1724249440605,-152.41,0.000327,31]
[335470634,1724249440614,-152.41,0.000327,31]
[335470635,1724249440625,-152.41,0.000327,31]
[335470636,1724249440634,-152.41,0.000327,31]
[335470637,1724249440644,-152.41,0.000327,31]
[335470638,1724249440653,-152.41,0.000327,31]
[335470639,1724249440663,-152.41,0.000327,31]
[335470640,1724249440673,-152.41,0.000327,31]
[335470641,1724249440682,-152.41,0.000327,31]
[335470642,1724249440692,-152.41,0.000327,31]
[335470643,1724249440701,-152.41,0.000327,31]
[335470644,1724249440710,-152.41,0.000327,31]
[335470645,1724249440720,-152.41,0.000327,31]
[335470646,1724249440729,-2039.18533839,0.00032734,2]
[335470647,1724249440739,-500.0,0.00032752,7]
[335470648,1724249440748,-2846.02535997,0.00032801,2]
[335470649,1724249440758,-5041.43498642,0.00032861,2]
[335470650,1724249440767,-220.4,0.00032864,4]
[335470651,1724249440776,-151.0,0.00032864,4]
[335470652,1724249440785,-62395.94139827,0.00032876,15]
[335470653,1724249440795,-1000.0,0.00032876,2]
[335470654,1724249440805,-6165.57,0.00032876,21]
[335470655,1724249440814,-151.0,0.00032876,7]
[335470656,1724249440827,-500.0,0.00032916,7]
[335470657,1724249440836,-600.0,0.00032918,7]
[335470658,1724249440846,-29799.163314,0.00032921,4]
[335470659,1724249440856,-151.0,0.00032921,7]
[335470660,1724249440866,-151.0,0.00032921,7]
[335470661,1724249440876,-151.0,0.00032921,7]
[335470662,1724249440887,-6165.57,0.00032931,21]
[335470663,1724249440896,-722.41072195,0.00032941,2]
[335470664,1724249440907,-500.0,0.00032962,7]
[335470665,1724249440917,-150.0,0.00032973,5]
[335470666,1724249440926,-151.0,0.00032986,7]
[335470667,1724249440935,-6165.57,0.00032986,21]
[335470668,1724249440943,-151.0,0.00032986,7]
[335470669,1724249440953,-151.0,0.0003299,7]
[335470670,1724249440962,-151.0,0.0003299,7]
[335470671,1724249440972,-151.0,0.0003299,7]
[335470672,1724249440982,-33407.78052535,0.0003299,4]
[335470673,1724249441044,-218.01699193,0.00024613,2]
[335470674,1724249441065,-26190.54610265,0.0003299,4]
[335470675,1724249441074,-151.0,0.00032999,7]
[335470676,1724249441084,-151.0,0.00032999,7]
[335470677,1724249441093,-151.0,0.00032999,7]
[335470678,1724249441106,-10000.0,0.00033,26]
[335470679,1724249441115,-150.112233,0.00033,10]
[335470680,1724249441124,-3771.55,0.00033,14]
[335470681,1724249441134,-461.72,0.00033,30]
[335470682,1724249441144,-225.0,0.00033,7]
[335470683,1724249441153,-150.112233,0.00033,6]
[335470684,1724249441163,-151.0,0.00033,7]
[335470685,1724249441173,-13811.538,0.00033,120]
[335470686,1724249441182,-13811.539,0.00033,120]
[335470687,1724249441191,-13811.538,0.00033,120]
[335470688,1724249441201,-13811.539,0.00033,120]
[335470689,1724249441211,-13811.538,0.00033,120]
[335470690,1724249441220,-151.0,0.00033,7]
[335470691,1724249441230,-408.49514382,0.00033,21]
[335470692,1724249441240,-151.0,0.00033,7]
[335470693,1724249441249,-151.0,0.00033,7]
[335470694,1724249441258,-151.0,0.00033,7]
[335470695,1724249441269,-151.0,0.00033,7]
[335470696,1724249441278,-6165.57,0.00033041,21]
[335470697,1724249441288,-3000.0,0.0003309,4]
[335470698,1724249441298,-5902.35699384,0.00033095,21]
[335470705,1724249443797,-603.64038806,0.0003,2]
[335470706,1724249443806,-263.21300616,0.00033095,21]
[335470708,1724249443817,-5041.43498642,0.00033105,2]
[335470710,1724249443830,-841.09946036,0.0003315,21]
[335470751,1724249446134,-342.20916482,0.00020309,2]
[335470752,1724249446144,-217.687578,0.00032876,7]
[335470753,1724249446153,-4647.70325719,0.00032899,2]
[335470781,1724250523218,24563.63926679,0.00014,2]
[335470884,1724250638188,-214.498104,0.00014247,2]
[335470885,1724250638199,-242.94370414,0.00020134,2]
[335470886,1724250638227,-257.05629586,0.00020134,2]
[335470887,1724250638237,-500.0,0.00020272,2]
[335470888,1724250638248,-434.26370414,0.00020365,2]
[335470889,1724250638260,-65.73629586,0.00020365,2]
[335470890,1724250638276,-214.498104,0.00020707,2]
[335470892,1724250638286,-500.0,0.00020923,2]
[335470894,1724250638296,-500.0,0.00021456,2]